bitfinex/quotes_SOLUSD_20250815
["timestamp","ask_amount","ask_price","bid_price","bid_amount"]
[1755265662593,24.0556429,191.49,191.43,24.0828673]
[1755265662746,5.22165944,191.51,191.43,24.0828673]
[1755265663070,24.05560881,191.5,191.44,23.4028673]
[1755265663253,23.4028673,191.48,191.42,23.4328673]
[1755265663450,23.4028673,191.49,191.43,23.4028673]
[1755265663651,5.87530899,191.48,191.43,23.4028673]
[1755265663853,5.87530899,191.48,191.42,0.03]
[1755265663854,23.4028673,191.44,191.42,0.03]
[1755265664164,23.4028673,191.43,191.42,0.03]
[1755265664674,1.37284378,191.47,191.42,0.03]
[1755265664845,23.4028673,191.43,191.42,0.03]
[1755265665248,24.1228673,191.43,191.42,0.03]
[1755265665462,27.53394877,191.43,191.42,0.03]
[1755265665779,32.75779038,191.43,191.42,0.03]
[1755265665948,62.75779038,191.43,191.42,0.03]
[1755265666149,15.10621557,191.42,191.4,0.03]
[1755265666479,15.10621557,191.42,191.38,0.03]
[1755265666480,15.10621557,191.4,191.38,1e-08]
[1755265666654,42.57328101,191.39,191.38,1e-08]
[1755265666975,27.46706544,191.39,191.38,1e-08]
[1755265667146,4.78419814,191.39,191.38,1e-08]
[1755265667349,24.77598397,191.39,191.38,1e-08]
[1755265667548,24.05598397,191.39,191.38,1e-08]
[1755265667744,30.65311667,191.39,191.38,1e-08]
[1755265667962,30.0,191.39,191.38,0.69000001]
[1755265668175,0.65304843,191.41,191.38,0.69000001]
[1755265668375,23.4028673,191.41,191.38,1e-08]
[1755265669071,0.6529802,191.43,191.39,0.69]
[1755265669256,23.4028673,191.43,191.39,0.69]
[1755265669457,23.4028673,191.44,191.38,23.40286731]
[1755265669655,23.4028673,191.46,191.41,5.22438744]
[1755265669857,23.4028673,191.45,191.39,29.31757798]
[1755265670157,24.05581339,191.44,191.39,5.91471068]
[1755265670359,23.4028673,191.45,191.4,0.69]
[1755265670669,24.05574518,191.46,191.41,0.69]
[1755265670984,23.4028673,191.47,191.42,0.69]
[1755265671354,23.4028673,191.47,191.43,0.69]
[1755265671555,0.71270743,191.51,191.46,23.4028673]
[1755265671858,23.4628673,191.51,191.45,23.4028673]
[1755265673169,23.4028673,191.48,191.37,13.09352841]
[1755265673478,23.4028673,191.47,191.42,26.0]
[1755265673775,1.43274151,191.5,191.42,50.0928673]
[1755265674082,23.4028673,191.47,191.42,50.0928673]
[1755265674467,23.4028673,191.47,191.42,26.69]
[1755265674960,23.4028673,191.46,191.4,26.0]
[1755265675163,23.4028673,191.45,191.39,96.55754203]
[1755265675362,0.65284378,191.47,191.4,0.69]
[1755265675568,0.65280969,191.48,191.41,23.4028673]
[1755265675779,0.65280969,191.48,191.4,5.91458762]
[1755265675780,23.4028673,191.46,191.4,5.91458762]
[1755265675975,23.4028673,191.46,191.4,24.0928673]
[1755265676172,23.4028673,191.44,191.39,41.24]
[1755265676375,23.4028673,191.44,191.39,41.93]
[1755265676694,23.4028673,191.44,191.39,41.24]
[1755265676695,23.4028673,191.42,191.39,41.24]
[1755265676861,0.65287788,191.46,191.39,41.24]
[1755265676862,5.22293327,191.47,191.4,0.69]
[1755265677063,23.4028673,191.46,191.4,24.0928673]
[1755265677312,23.4028673,191.47,191.41,23.4028673]
[1755265677514,0.06,191.5,191.39,46.4648128]
[1755265677515,23.4628673,191.5,191.45,23.4028673]
[1755265677802,23.4628673,191.5,191.46,24.0928673]
[1755265677803,0.06,191.5,191.46,24.0928673]
[1755265678004,0.06,191.5,191.47,0.69]
[1755265678374,0.06,191.5,191.45,69.86608863]
[1755265678604,0.06,191.5,191.45,64.6428673]
[1755265678903,27.53920917,191.5,191.45,41.24]
[1755265679108,24.11560881,191.5,191.45,41.24]
[1755265679403,0.06,191.5,191.46,0.69]
[1755265679584,0.06,191.5,191.47,24.0928673]
[1755265679906,0.06,191.5,191.48,5.22243899]
[1755265680076,0.06,191.5,191.49,23.4028673]
[1755265680281,0.06,191.5,191.49,24.0928673]
[1755265680616,0.06,191.5,191.45,23.4028673]
[1755265680782,0.06,191.5,191.49,23.4028673]
[1755265680999,0.06,191.5,191.49,64.6428673]
[1755265681191,0.06,191.5,191.49,41.93]
[1755265681392,0.06,191.5,191.49,41.24]
[1755265681815,0.06,191.5,191.49,70.55507211]
[1755265682184,0.06,191.51,191.49,70.55507211]
[1755265682398,0.06,191.51,191.5,50.0928673]
[1755265682586,0.06,191.53,191.52,26.0]
[1755265682792,0.06,191.53,191.52,49.4028673]
[1755265682976,0.06,191.53,191.52,50.0928673]
[1755265683407,0.06,191.53,191.52,26.0]
[1755265683615,0.06,191.53,191.48,54.6252785]
[1755265683803,0.06,191.53,191.52,23.4028673]
[1755265684010,0.06,191.53,191.52,64.6228673]
[1755265684187,0.06,191.53,191.52,65.3128673]
[1755265684386,0.06,191.55,191.54,26.0]
[1755265684609,0.06,191.56,191.54,49.4028673]
[1755265684780,0.06,191.57,191.56,23.4028673]
[1755265684986,0.06,191.57,191.56,64.6228673]
[1755265685190,0.06,191.57,191.56,65.3128673]
[1755265685797,0.06,191.57,191.56,70.53316381]
[1755265686116,0.06,191.57,191.55,31.22053023]
[1755265686297,0.06,191.57,191.56,41.2]
[1755265686617,0.06,191.57,191.56,65.2928673]
[1755265686791,0.06,191.57,191.56,41.2]
[1755265687391,0.06,191.57,191.55,26.0]
[1755265687392,0.06,191.57,191.55,41.2]
[1755265688591,0.06,191.57,191.55,64.6028673]
[1755265688898,0.06,191.57,191.55,41.2]
[1755265689813,5.22056904,191.55,191.5,23.4028673]
[1755265690027,23.4028673,191.51,191.43,0.69]
[1755265690200,23.4028673,191.48,191.44,41.2]
[1755265690394,0.72,191.51,191.44,41.2]
[1755265690716,0.65260519,191.54,191.44,41.2]
[1755265690717,0.72,191.5,191.44,41.2]
[1755265690922,23.4028673,191.49,191.44,41.2]
[1755265691094,23.4028673,191.48,191.44,41.2]
[1755265691902,29.34559488,191.48,191.44,41.2]
[1755265692326,5.22272758,191.48,191.44,41.2]
[1755265692532,1.37270743,191.51,191.44,41.2]
[1755265692812,0.712503,191.57,191.5,23.4028673]
[1755265693027,23.4028673,191.56,191.51,64.6028673]
[1755265693232,0.06,191.57,191.52,23.4028673]
[1755265693421,0.712503,191.57,191.52,23.4028673]
[1755265694011,0.06,191.57,191.56,23.4028673]
[1755265694244,0.06,191.57,191.56,64.5828673]
[1755265694453,0.06,191.57,191.56,65.2728673]
[1755265695222,0.06,191.58,191.56,65.2728673]
[1755265695422,1e-08,191.58,191.57,24.0928673]
[1755265695723,5.2154046,191.74,191.6,26.0]
[1755265695937,0.69,191.74,191.63,5.2183896]
[1755265696254,5.60250457,191.82,191.63,5.2183896]
[1755265696255,0.69,191.78,191.65,49.4028673]
[1755265696449,0.69,191.78,191.72,23.4028673]
[1755265696657,0.69,191.78,191.72,64.5828673]
[1755265696814,0.69,191.78,191.72,41.18]
[1755265697016,24.0928673,191.78,191.72,41.18]
[1755265697318,1219.511879,191.73,191.71,41.18]
[1755265697631,1218.821879,191.73,191.71,41.18]
[1755265698123,1218.821879,191.73,191.72,23.4028673]
[1755265699144,1218.821879,191.73,191.71,46.39617122]
[1755265699326,1218.821879,191.73,191.71,41.18]
[1755265699529,1218.821879,191.73,191.72,23.4028673]
[1755265699731,1218.821879,191.73,191.71,46.39619212]
[1755265699939,1218.821879,191.73,191.71,41.18]
[1755265700137,1218.821879,191.73,191.71,64.5828673]
[1755265700538,1218.821879,191.73,191.72,24.0928673]
[1755265700728,1218.821879,191.73,191.72,50.0928673]
[1755265700932,1218.821879,191.73,191.72,49.4028673]
[1755265701258,1218.821879,191.73,191.69,23.4028673]
[1755265701418,0.69,191.72,191.7,41.14]
[1755265701746,1218.821879,191.73,191.69,41.14]
[1755265701953,23.4028673,191.71,191.69,41.14]
[1755265702253,24.74492781,191.7,191.66,41.14]
[1755265702450,24.74492781,191.7,191.63,0.03]
[1755265702451,23.4028673,191.67,191.63,0.03]
[1755265702641,23.4028673,191.66,191.63,41.17]
[1755265702840,0.69,191.65,191.63,41.17]
[1755265703225,0.69,191.64,191.63,0.03]
[1755265703567,0.69,191.67,191.63,0.03]
[1755265703757,0.65209452,191.69,191.64,23.4028673]
[1755265704054,24.74485978,191.72,191.66,28.6204052]
[1755265704218,6.55794873,191.72,191.65,23.4028673]
[1755265704424,23.4028673,191.7,191.64,69.7607196]
[1755265704616,1.34199248,191.72,191.68,23.4028673]
[1755265704822,1218.881879,191.73,191.69,0.69]
[1755265705044,1242.9747463,191.73,191.7,41.14]
[1755265705246,1218.881879,191.73,191.69,41.14]
[1755265705535,24.0928673,191.72,191.69,41.14]
[1755265705731,24.05485978,191.72,191.69,41.14]
[1755265706062,24.0928673,191.71,191.69,41.14]
[1755265706223,28.61911983,191.71,191.69,41.14]
[1755265706427,24.74492781,191.7,191.65,67.14]
[1755265706630,24.0928673,191.69,191.65,67.14]
[1755265706845,0.69,191.69,191.65,67.14]
[1755265707048,23.4028673,191.7,191.65,90.5428673]
[1755265707230,23.4028673,191.7,191.65,67.14]
[1755265707452,24.0928673,191.7,191.65,72.35783844]
[1755265707676,24.05489379,191.71,191.65,95.76070574]
[1755265707991,1219.571879,191.73,191.68,5.21702838]
[1755265708143,1218.881879,191.73,191.69,64.5228673]
[1755265709048,23.4028673,191.71,191.69,41.12]
[1755265709375,1218.881879,191.73,191.68,23.4028673]
[1755265709766,1242.9747463,191.73,191.69,41.12]
[1755265710078,1248.19045132,191.73,191.69,41.12]
[1755265710253,0.69,191.72,191.69,41.12]
[1755265710451,1242.2847463,191.73,191.69,41.12]
[1755265710648,1218.881879,191.73,191.69,46.33659629]
[1755265710872,1218.881879,191.73,191.69,69.73946359]
[1755265711043,1218.881879,191.73,191.69,46.33659629]
[1755265711246,1218.881879,191.73,191.71,23.4028673]
[1755265711581,1218.881879,191.73,191.69,69.73946359]
[1755265711966,1218.881879,191.73,191.69,41.12]
[1755265712151,1218.881879,191.73,191.7,23.4028673]
[1755265712349,1218.881879,191.73,191.69,41.12]
[1755265712676,1218.881879,191.73,191.68,23.4028673]
[1755265712877,1218.881879,191.73,191.69,41.1]
[1755265713561,1242.2847463,191.73,191.66,31.21730609]
[1755265713759,0.69,191.72,191.67,41.1]
[1755265713977,1218.881879,191.73,191.7,28.61930555]
[1755265714286,1218.881879,191.73,191.7,69.71930555]
[1755265714484,1218.881879,191.73,191.67,5.21724791]
[1755265714655,24.0928673,191.72,191.68,41.1]
[1755265714855,1218.881879,191.73,191.68,64.5028673]
[1755265715056,23.4028673,191.7,191.68,41.1]
[1755265715277,1.34199248,191.72,191.68,41.1]
[1755265715477,24.0928673,191.71,191.68,41.1]
[1755265715657,0.69,191.71,191.67,26.0]
[1755265715974,23.4028673,191.69,191.66,26.0]
[1755265716286,23.4028673,191.7,191.66,26.0]
[1755265716472,24.0928673,191.69,191.66,26.0]
[1755265716678,23.4028673,191.67,191.65,0.03]
[1755265716986,27.44709947,191.66,191.65,0.03]
[1755265717159,4.73423217,191.66,191.65,0.03]
[1755265717365,28.13709947,191.66,191.65,0.03]
[1755265717572,43.24331504,191.66,191.65,0.03]
[1755265718094,48.46088782,191.66,191.65,0.03]
[1755265718265,25.05802052,191.66,191.65,0.03]
[1755265718460,33.35467225,191.66,191.65,0.03]
[1755265719089,48.46088782,191.66,191.65,0.03]
[1755265719392,3.39203558,191.66,191.65,0.03]
[1755265719555,9.26155464,191.67,191.65,0.03]
[1755265719753,0.65209452,191.69,191.65,0.03]
[1755265719956,23.4028673,191.66,191.65,0.03]
[1755265720150,56.79853607,191.66,191.65,0.03]
[1755265720469,62.70610885,191.66,191.65,0.03]
[1755265721472,56.79853607,191.66,191.65,0.03]
[1755265721680,33.39566877,191.66,191.65,0.03]
[1755265722260,3.39566877,191.66,191.65,0.03]
[1755265722868,26.79853607,191.66,191.65,0.03]
[1755265723477,3.39566877,191.66,191.65,0.03]
[1755265725681,26.79853607,191.66,191.65,0.03]
[1755265726379,32.73610885,191.66,191.65,0.03]
[1755265726779,32.01610885,191.66,191.65,0.03]
[1755265727098,26.79853607,191.66,191.65,0.03]
[1755265727299,3.39566877,191.66,191.65,0.03]
[1755265727498,26.79853607,191.66,191.65,0.03]
[1755265727796,32.01610885,191.66,191.65,0.03]
[1755265728092,32.66830544,191.66,191.65,0.03]
[1755265728500,33.38830544,191.66,191.65,0.03]
[1755265728700,41.3080226,191.66,191.65,0.03]
[1755265729195,26.20180703,191.66,191.65,0.03]
[1755265729772,41.3080226,191.66,191.65,0.03]
[1755265730372,41.3080226,191.66,191.63,0.03]
[1755265730373,15.10621557,191.65,191.63,0.03]
[1755265730681,20.26430232,191.64,191.63,0.03]
[1755265730880,50.98430232,191.64,191.63,0.03]
[1755265731086,66.09051789,191.64,191.63,0.03]
[1755265731287,147.00621557,191.63,191.61,0.03]
[1755265731501,57.32258446,191.6,191.57,0.03]
[1755265731800,16.21636889,191.58,191.57,1e-08]
[1755265731973,49.61203766,191.58,191.57,1e-08]
[1755265732181,39.3354203,191.58,191.57,1e-08]
[1755265732496,55.55178919,191.58,191.57,1e-08]
[1755265733288,56.20425813,191.58,191.57,1e-08]
[1755265733489,112.3704737,191.58,191.57,1e-08]
[1755265733698,111.71800476,191.58,191.57,1e-08]
[1755265734087,16.21636889,191.5,191.47,0.66]
[1755265734287,5.2217851,191.51,191.47,0.66]
[1755265734491,16.21636889,191.5,191.47,0.66]
[1755265734701,16.21636889,191.52,191.5,0.66]
[1755265735008,16.21636889,191.51,191.45,67.75]
[1755265735180,16.21636889,191.5,191.45,67.75]
[1755265735504,16.21636889,191.52,191.5,0.66]
[1755265735674,16.21636889,191.54,191.51,0.66]
[1755265736074,16.21636889,191.52,191.49,0.03]
[1755265736697,16.21636889,191.53,191.5,0.66]
[1755265737382,5.87284351,191.56,191.49,0.03]
[1755265737704,0.65253706,191.56,191.5,0.66]
[1755265738008,16.21636889,191.54,191.5,0.66]
[1755265738307,0.65253706,191.56,191.5,0.66]
[1755265738308,16.21636889,191.53,191.5,0.66]
[1755265738603,16.21636889,191.52,191.49,0.03]
[1755265738808,16.21636889,191.5,191.49,0.03]
[1755265739180,0.65270743,191.51,191.49,0.03]
[1755265739408,16.21636889,191.5,191.49,0.03]
[1755265740194,17.5891104,191.5,191.49,0.03]
[1755265740394,15.10621557,191.49,191.45,0.03]
[1755265740582,31.32258446,191.46,191.45,0.03]
[1755265740920,31.32258446,191.46,191.43,0.03]
[1755265740921,15.10621557,191.45,191.43,0.03]
[1755265741148,0.65294609,191.44,191.43,0.03]
[1755265741296,16.86931498,191.44,191.43,0.03]
[1755265741499,32.69553055,191.44,191.43,0.03]
[1755265741732,4.05304022,191.44,191.43,0.03]
[1755265741899,16.21636889,191.44,191.43,0.03]
[1755265742215,30.0,191.44,191.43,0.03]
[1755265742432,46.21636889,191.44,191.43,0.03]
[1755265742639,51.43993763,191.44,191.43,0.03]
[1755265742812,70.66501584,191.44,191.43,0.03]
[1755265743625,69.94501584,191.44,191.43,0.03]
[1755265743998,30.0,191.44,191.43,0.03]
[1755265744332,46.21636889,191.44,191.43,0.03]
[1755265744506,51.43993763,191.44,191.43,0.03]
[1755265744708,46.21636889,191.44,191.43,0.03]
[1755265745116,16.86928087,191.45,191.43,0.03]
[1755265745320,0.65291198,191.45,191.43,0.03]
[1755265745525,16.21636889,191.44,191.43,0.03]
[1755265745729,16.86928087,191.45,191.43,0.03]
[1755265745901,0.65284378,191.47,191.43,0.69]
[1755265746104,16.21636889,191.46,191.43,0.69]
[1755265746426,16.86928087,191.45,191.43,0.03]
[1755265746734,16.21636889,191.47,191.44,0.66]
[1755265747030,16.21636889,191.46,191.43,0.03]
[1755265747238,16.21636889,191.44,191.43,0.03]
[1755265747534,0.65291198,191.45,191.43,0.03]
[1755265747840,16.21636889,191.48,191.43,0.69]
[1755265748014,16.86924677,191.46,191.43,0.03]
[1755265748716,16.21636889,191.45,191.43,0.03]
[1755265748927,16.86931498,191.44,191.43,0.03]
[1755265749519,17.58931498,191.44,191.43,0.03]
[1755265749717,20.98190021,191.44,191.43,0.03]
[1755265750233,16.86931498,191.44,191.43,0.03]
[1755265750439,82.33064113,191.44,191.43,0.03]
[1755265750942,41.10621557,191.39,191.38,1e-08]
[1755265751128,102.38724297,191.39,191.38,1e-08]
[1755265751322,103.10724297,191.39,191.38,1e-08]
[1755265751638,85.51775741,191.39,191.38,1e-08]
[1755265751836,131.7341263,191.39,191.38,1e-08]
[1755265752465,137.59905968,191.39,191.38,1e-08]
[1755265753036,80.36269079,191.39,191.38,1e-08]
[1755265753229,137.59905968,191.39,191.38,1e-08]
[1755265753631,30.0,191.39,191.38,1e-08]
[1755265753948,46.86948556,191.39,191.38,1e-08]
[1755265754553,30.65311667,191.39,191.38,1e-08]
[1755265754759,30.0,191.39,191.38,16.8763689]
[1755265755053,0.6508061,191.42,191.38,16.8763689]
[1755265755260,0.6508061,191.42,191.39,0.69]
[1755265755563,22.09129405,191.42,191.39,0.69]
[1755265755743,16.21636889,191.4,191.38,1e-08]
[1755265755930,16.86948556,191.39,191.38,1e-08]
[1755265756335,20.25104338,191.39,191.38,1e-08]
[1755265756567,22.09441894,191.39,191.38,1e-08]
[1755265757062,16.86948556,191.39,191.38,1e-08]
[1755265757265,25.47605939,191.39,191.38,1e-08]
[1755265757553,55.47605939,191.39,191.38,1e-08]
[1755265758131,70.58227496,191.39,191.38,1e-08]
[1755265758543,71.27227496,191.39,191.38,1e-08]
[1755265758861,54.36590607,191.39,191.38,1e-08]
[1755265759043,70.58227496,191.39,191.38,1e-08]
[1755265759732,54.36590607,191.39,191.38,1e-08]
[1755265760035,70.58227496,191.39,191.38,1e-08]
[1755265760464,112.27227496,191.39,191.38,1e-08]
[1755265760653,15.10621557,191.38,191.36,0.03]
[1755265760846,15.10621557,191.36,191.34,0.03]
[1755265761044,76.35747811,191.35,191.34,0.03]
[1755265761366,77.04747811,191.35,191.34,0.03]
[1755265761867,106.35747811,191.35,191.34,0.03]
[1755265762158,105.70422491,191.35,191.34,0.03]
[1755265762473,111.62025051,191.35,191.34,0.03]
[1755265762960,15.10621557,191.29,191.28,0.03]
[1755265763270,26.0,191.27,191.26,0.03]
[1755265763439,15.10621557,191.26,191.22,0.2]
[1755265763639,16.21636889,191.23,191.22,0.2]
[1755265763967,75.68422491,191.23,191.22,0.2]
[1755265764170,106.37422491,191.23,191.22,0.2]
[1755265764461,111.60352993,191.23,191.22,0.2]
[1755265764672,53.71716104,191.23,191.22,0.2]
[1755265764859,74.38164045,191.23,191.22,0.2]
[1755265765038,49.58814369,191.23,191.22,0.2]
[1755265765365,70.57520776,191.23,191.22,0.2]
[1755265765665,34.02331828,191.23,191.22,0.2]
[1755265765859,46.21636889,191.23,191.22,0.2]
[1755265766055,52.09933703,191.23,191.22,0.2]
[1755265766259,22.09933703,191.23,191.22,0.2]
[1755265766572,37.2055526,191.23,191.22,0.2]
[1755265766784,37.2055526,191.23,191.14,0.03]
[1755265766785,26.0,191.21,191.14,0.03]
[1755265766935,31.32258446,191.19,191.14,0.03]
[1755265767137,15.10621557,191.18,191.14,0.03]
[1755265767356,16.21636889,191.15,191.14,0.03]
[1755265767567,26.0,191.13,191.02,0.69]
[1755265767799,15.10621557,191.12,191.02,0.69]
[1755265767957,15.10621557,191.12,191.01,0.03]
[1755265767958,16.21636889,191.03,191.01,0.03]
[1755265768167,16.21636889,191.02,191.01,0.03]
[1755265768389,16.87075063,191.02,191.01,0.03]
[1755265768551,22.10580455,191.02,191.01,0.03]
[1755265768754,24.24835912,191.02,191.01,0.03]
[1755265768984,29.48341304,191.02,191.01,0.03]
[1755265769185,0.65438174,191.02,191.01,0.03]
[1755265769396,23.59397738,191.02,191.01,0.03]
[1755265769864,0.65434748,191.03,191.01,0.72]
[1755265770065,24.24822211,191.06,191.02,0.69]
[1755265770266,0.65424473,191.06,191.03,0.69]
[1755265770461,0.65424473,191.06,191.04,0.69]
[1755265770665,0.65424473,191.06,191.02,5.23505392]
[1755265770666,0.65424473,191.06,191.05,0.69]
[1755265770968,23.59397738,191.06,191.03,0.69]
[1755265771183,23.59397738,191.04,191.01,0.03]
[1755265771387,0.65427898,191.05,191.01,0.03]
[1755265771388,23.59397738,191.02,191.01,0.03]
[1755265772478,29.5190313,191.02,191.01,0.03]
[1755265772683,24.24835912,191.02,191.01,0.03]
[1755265773377,0.65421049,191.07,191.01,0.72]
[1755265773583,23.59397738,191.05,191.01,0.72]
[1755265773793,0.65431323,191.04,191.02,0.69]
[1755265774101,23.59397738,191.05,191.03,0.69]
[1755265774281,23.59397738,191.06,191.03,0.69]
[1755265774480,0.65421049,191.07,191.04,5.92450586]
[1755265774686,23.59397738,191.06,191.05,0.69]
[1755265774928,23.59397738,191.06,191.01,0.03]
[1755265774929,15.10621557,191.05,191.01,0.03]
[1755265775204,23.59397738,191.02,191.01,0.03]
[1755265775405,105.70019295,191.02,191.01,0.03]
[1755265775607,106.39019295,191.02,191.01,0.03]
[1755265776119,79.70019295,191.02,191.01,0.03]
[1755265776304,30.0,191.02,191.01,0.03]
[1755265776495,73.93524687,191.02,191.01,0.03]
[1755265776696,75.27962861,191.02,191.01,0.03]
[1755265776889,74.58962861,191.02,191.01,0.03]
[1755265777206,75.27962861,191.02,191.01,0.03]
[1755265777782,54.24835912,191.02,191.01,0.03]
[1755265777986,53.59397738,191.02,191.01,0.03]
[1755265778190,54.24835912,191.02,191.01,0.03]
[1755265778389,59.48341304,191.02,191.01,0.03]
[1755265778611,54.24835912,191.02,191.01,0.03]
[1755265779002,30.65438174,191.02,191.01,0.72]
[1755265779213,0.65438174,191.02,191.01,0.72]
[1755265779422,24.24835912,191.02,191.01,0.03]
[1755265779626,29.48341304,191.02,191.01,0.03]
[1755265780419,45.27962861,191.02,191.01,0.03]
[1755265780604,75.27962861,191.02,191.01,0.03]
[1755265780987,75.27962861,191.02,190.88,0.69]
[1755265780988,15.10621557,190.98,190.88,0.69]
[1755265781199,23.59397738,190.9,190.86,0.69]
[1755265781423,23.59397738,190.9,190.89,680.61424242]
[1755265781621,40.98,190.94,190.89,680.61424242]
[1755265781622,23.59397738,190.91,190.89,680.61424242]
[1755265782127,15.10621557,190.98,190.89,680.61424242]
[1755265782128,81.02498603,190.9,190.89,679.92424242]
[1755265782332,80.33498603,190.9,190.89,679.92424242]
[1755265782640,5.89248464,190.93,190.89,679.92424242]
[1755265782810,23.59397738,190.9,190.89,679.92424242]
[1755265783133,24.24870187,190.92,190.89,680.61424242]
[1755265783295,0.65472449,190.92,190.9,0.69]
[1755265783492,24.24870187,190.92,190.9,0.69]
[1755265783692,0.65465591,190.94,190.91,0.69]
[1755265783924,24.24863329,190.94,190.92,0.69]
[1755265784427,24.24863329,190.94,190.89,679.95424242]
[1755265784428,0.65465591,190.94,190.89,679.95424242]
[1755265784723,0.65465591,190.94,190.9,24.28397738]
[1755265784934,0.65458734,190.96,190.92,23.59397738]
[1755265785095,0.65458734,190.96,190.93,24.26397738]
[1755265785598,0.65448452,190.99,190.94,0.67]
[1755265785793,0.65448452,190.99,190.96,23.59397738]
[1755265786032,24.24825636,191.05,190.98,23.59397738]
[1755265786234,24.24825636,191.05,190.93,41.0]
[1755265786235,0.65427898,191.05,191.0,23.59397738]
[1755265786444,24.24825636,191.05,191.01,0.67]
[1755265786616,30.0,191.01,190.99,28.82977293]
[1755265786819,30.0,191.01,191.0,0.67]
[1755265787322,30.0,191.01,191.0,24.26397738]
[1755265787519,0.65417626,191.08,191.0,24.26397738]
[1755265787739,29.4804318,191.12,191.06,23.59397738]
[1755265787933,0.65403934,191.12,191.08,23.59397738]
[1755265788138,0.06,191.16,191.09,0.67]
[1755265788139,23.59397738,191.14,191.09,0.67]
[1755265788313,0.65400512,191.13,191.1,0.67]
[1755265788515,24.2479825,191.13,191.07,29.49747983]
[1755265788839,24.2479825,191.13,191.08,23.59397738]
[1755265789039,0.65397091,191.14,191.11,23.59397738]
[1755265789246,23.59397738,191.15,191.11,0.67]
[1755265789547,0.71390249,191.16,191.12,0.67]
[1755265789740,23.59397738,191.13,191.07,5.90350245]
[1755265790044,23.59397738,191.11,191.07,0.67]
[1755265790239,0.71,191.15,191.03,24.26397738]
[1755265790240,0.65410779,191.1,191.03,24.26397738]
[1755265790410,23.59397738,191.05,191.03,0.67]
[1755265790614,24.24829061,191.04,191.0,0.67]
[1755265790814,0.65431323,191.04,190.97,0.67]
[1755265791034,23.59397738,191.02,190.97,0.67]
[1755265791239,23.59397738,191.0,190.95,40.96]
[1755265791439,24.2484619,190.99,190.95,0.67]
[1755265792039,23.59397738,190.98,190.95,0.67]
[1755265792240,23.59397738,190.98,190.92,0.67]
[1755265792471,24.24853045,190.97,190.92,0.67]
[1755265792635,29.48515463,190.97,190.92,0.67]
[1755265793022,23.59397738,190.96,190.92,0.67]
[1755265793229,23.59397738,190.95,190.89,750.41661224]
[1755265793524,23.59397738,190.96,190.9,0.67]
[1755265793727,24.24856472,190.96,190.9,24.26397738]
[1755265793930,23.59397738,190.95,190.9,0.67]
[1755265794120,23.59397738,190.93,190.89,679.95424242]
[1755265794322,23.59397738,190.91,190.89,679.95424242]
[1755265794522,23.59397738,190.92,190.89,679.95424242]
[1755265795134,0.65462162,190.95,190.89,679.95424242]
[1755265795628,23.59397738,190.92,190.89,679.95424242]
[1755265795829,24.24866758,190.93,190.89,679.95424242]
[1755265796039,24.24866758,190.93,190.9,0.67]
[1755265796239,0.6546902,190.93,190.9,0.67]
[1755265796553,23.59397738,190.94,190.91,0.67]
[1755265796738,23.59397738,190.94,190.89,679.95424242]
[1755265796739,0.6546902,190.93,190.89,679.95424242]
[1755265796938,24.24866758,190.93,190.89,680.62424242]
[1755265797538,24.24866758,190.93,190.9,0.67]
[1755265798053,23.59397738,190.94,190.9,0.67]
[1755265798550,23.59397738,190.94,190.91,0.67]
[1755265798851,23.59397738,190.94,190.89,685.19278887]
[1755265799042,24.248599,190.95,190.9,0.67]
[1755265799249,24.248599,190.95,190.91,0.67]
[1755265799557,0.65462162,190.95,190.91,0.67]
[1755265799753,23.59397738,190.95,190.9,40.96]
[1755265800054,24.24863329,190.94,190.9,41.63]
[1755265800225,24.2484619,190.99,190.93,23.59397738]
[1755265800422,23.59397738,190.98,190.92,23.59397738]